[Event "*** Titled Tuesday Blitz"]
[Site "Chess.com"]
[Date "2021.04.20"]
[Round "2"]
[White "GadimbayliA"]
[Black "agartha01"]
[Result "1/2-1/2"]
[WhiteElo "2758"]
[BlackElo "2524"]
[TimeControl "180+1"]
[EndTime "10:19:57 PDT"]
[Termination "Game drawn by repetition"]

1. e4 {[%clk 0:03:00.9]} 1... c5 {[%clk 0:02:59.7]} 2. Nf3 {[%clk 0:03:01.4]}
2... e6 {[%clk 0:02:59.5]} 3. d4 {[%clk 0:03:01.9]} 3... cxd4 {[%clk 0:03:00.1]}
4. Nxd4 {[%clk 0:03:02.8]} 4... a6 {[%clk 0:03:00.8]} 5. Bd3 {[%clk 0:03:02.6]}
5... Nc6 {[%clk 0:02:57.1]} 6. Nxc6 {[%clk 0:03:01.7]} 6... dxc6 {[%clk
0:02:58]} 7. O-O {[%clk 0:03:02.2]} 7... e5 {[%clk 0:02:57.3]} 8. f4 {[%clk
0:03:02]} 8... Bc5+ {[%clk 0:02:53.7]} 9. Kh1 {[%clk 0:03:02]} 9... Nf6 {[%clk
0:02:54.1]} 10. f5 {[%clk 0:02:51.7]} 10... b5 {[%clk 0:02:42]} 11. Bg5 {[%clk
0:02:49.9]} 11... Bb7 {[%clk 0:02:35.3]} 12. Nd2 {[%clk 0:02:48.9]} 12... h6
{[%clk 0:02:34.2]} 13. Bh4 {[%clk 0:02:48.6]} 13... Bd4 {[%clk 0:02:22.1]} 14.
Rb1 {[%clk 0:02:43.2]} 14... c5 {[%clk 0:02:21.7]} 15. b3 {[%clk 0:02:11.7]}
15... Be3 {[%clk 0:02:08.1]} 16. Nf3 {[%clk 0:02:09.2]} 16... Qd6 {[%clk
0:01:50]} 17. Bxb5+ {[%clk 0:02:03.9]} 17... Ke7 {[%clk 0:01:44.9]} 18. Qxd6+
{[%clk 0:01:48.4]} 18... Kxd6 {[%clk 0:01:45.8]} 19. Rbd1+ {[%clk 0:01:49]}
19... Kc7 {[%clk 0:01:42.2]} 20. Bc4 {[%clk 0:01:41.1]} 20... Nxe4 {[%clk
0:01:26.6]} 21. Nxe5 {[%clk 0:01:38.8]} 21... f6 {[%clk 0:01:19.9]} 22. Rd7+
{[%clk 0:01:27.2]} 22... Kb6 {[%clk 0:01:19.1]} 23. Nf3 {[%clk 0:01:04.8]} 23...
Rad8 {[%clk 0:00:48.8]} 24. Rfd1 {[%clk 0:01:01.6]} 24... Rxd7 {[%clk 0:00:45]}
25. Rxd7 {[%clk 0:01:02.5]} 25... Bc6 {[%clk 0:00:42.9]} 26. Rd1 {[%clk
0:00:35.8]} 26... Re8 {[%clk 0:00:37]} 27. Bd3 {[%clk 0:00:31.3]} 27... Nf2+
{[%clk 0:00:27.5]} 28. Bxf2 {[%clk 0:00:30.6]} 28... Bxf2 {[%clk 0:00:28.4]} 29.
Rf1 {[%clk 0:00:24.5]} 29... Bxf3 {[%clk 0:00:23.3]} 30. gxf3 {[%clk 0:00:17.8]}
30... Re1 {[%clk 0:00:19.4]} 31. Kg2 {[%clk 0:00:17.8]} 31... Rxf1 {[%clk
0:00:19.2]} 32. Bxf1 {[%clk 0:00:18.7]} 32... Bd4 {[%clk 0:00:19.4]} 33. Bc4
{[%clk 0:00:15.7]} 33... a5 {[%clk 0:00:19.5]} 34. Kh3 {[%clk 0:00:14.3]} 34...
Kc7 {[%clk 0:00:19.7]} 35. Kg4 {[%clk 0:00:14.5]} 35... Kd6 {[%clk 0:00:19.3]}
36. h4 {[%clk 0:00:14.5]} 36... Bf2 {[%clk 0:00:18.8]} 37. Kh5 {[%clk
0:00:13.3]} 37... Ke5 {[%clk 0:00:17.8]} 38. Be6 {[%clk 0:00:13.5]} 38... Be1
{[%clk 0:00:17.2]} 39. Kg4 {[%clk 0:00:11.6]} 39... Bf2 {[%clk 0:00:15.1]} 40.
Bd7 {[%clk 0:00:07.3]} 40... Be1 {[%clk 0:00:14.6]} 41. Bc6 {[%clk 0:00:07.5]}
41... h5+ {[%clk 0:00:14.3]} 42. Kxh5 {[%clk 0:00:06.3]} 42... Kxf5 {[%clk
0:00:14.4]} 43. Bd7+ {[%clk 0:00:07]} 43... Kf4 {[%clk 0:00:14.4]} 44. Bc6
{[%clk 0:00:06.6]} 44... Kf5 {[%clk 0:00:12.6]} 45. Be4+ {[%clk 0:00:06.5]}
45... Kf4 {[%clk 0:00:12.9]} 46. Kg6 {[%clk 0:00:07]} 46... Bxh4 {[%clk
0:00:12.7]} 47. Kxg7 {[%clk 0:00:07.6]} 47... f5 {[%clk 0:00:13.1]} 48. Bc6
{[%clk 0:00:08.1]} 48... Ke3 {[%clk 0:00:13.3]} 49. Kg6 {[%clk 0:00:08.3]} 49...
f4 {[%clk 0:00:13.5]} 50. Kf5 {[%clk 0:00:08.8]} 50... Be1 {[%clk 0:00:12]} 51.
Ke5 {[%clk 0:00:08.1]} 51... Bb4 {[%clk 0:00:11.8]} 52. Be4 {[%clk 0:00:07.3]}
52... Bc3+ {[%clk 0:00:11.1]} 53. Kd5 {[%clk 0:00:07.6]} 53... Bb4 {[%clk
0:00:11.5]} 54. Kc4 {[%clk 0:00:08.1]} 54... Kd2 {[%clk 0:00:11.5]} 55. Kb5
{[%clk 0:00:08.4]} 55... Kc3 {[%clk 0:00:11.4]} 56. Kc6 {[%clk 0:00:08.7]} 56...
Kd4 {[%clk 0:00:11.6]} 57. Kb5 {[%clk 0:00:08.2]} 57... Kc3 {[%clk 0:00:11.6]}
58. Kb6 {[%clk 0:00:07.2]} 58... Kb2 {[%clk 0:00:11.6]} 59. Kc6 {[%clk
0:00:05.7]} 59... Kxa2 {[%clk 0:00:11.6]} 60. Kd5 {[%clk 0:00:06.2]} 60... Kb2
{[%clk 0:00:11.9]} 61. Ke5 {[%clk 0:00:06.6]} 61... Bd2 {[%clk 0:00:12.1]} 62.
Kd5 {[%clk 0:00:06.8]} 62... Be3 {[%clk 0:00:12.2]} 63. Kc4 {[%clk 0:00:06.6]}
63... Ka3 {[%clk 0:00:12.6]} 64. Kb5 {[%clk 0:00:06.8]} 64... Kb2 {[%clk
0:00:12.9]} 65. Kxa5 {[%clk 0:00:06.9]} 65... Kc3 {[%clk 0:00:13.1]} 66. Kb5
{[%clk 0:00:07.3]} 66... Bf2 {[%clk 0:00:13.3]} 67. Kc6 {[%clk 0:00:07.5]} 67...
Be3 {[%clk 0:00:13.6]} 68. Kd5 {[%clk 0:00:08]} 68... Bf2 {[%clk 0:00:13.3]} 69.
Ke5 {[%clk 0:00:08.4]} 69... Be3 {[%clk 0:00:13.5]} 70. Bd3 {[%clk 0:00:08.9]}
70... Kb4 {[%clk 0:00:12.8]} 71. Bc4 {[%clk 0:00:08.4]} 71... Kc3 {[%clk
0:00:12.6]} 72. Bd3 {[%clk 0:00:08.7]} 72... Bd2 {[%clk 0:00:11.5]} 73. Ke4
{[%clk 0:00:08.3]} 73... Be3 {[%clk 0:00:11.6]} 74. Kd5 {[%clk 0:00:08.9]} 74...
Bf2 {[%clk 0:00:11.7]} 75. Ke4 {[%clk 0:00:08.7]} 75... Be3 {[%clk 0:00:11.9]}
76. Kd5 {[%clk 0:00:09.3]} 76... Bf2 {[%clk 0:00:11.9]} 77. Bg6 {[%clk
0:00:10.2]} 77... Be3 {[%clk 0:00:11.8]} 78. Kd6 {[%clk 0:00:10.4]} 78... Bf2
{[%clk 0:00:11.5]} 79. Ke6 {[%clk 0:00:10.9]} 79... Be3 {[%clk 0:00:11.6]} 80.
Kd5 {[%clk 0:00:11]} 80... Bf2 {[%clk 0:00:11.4]} 81. Kc6 {[%clk 0:00:11.6]}
81... Be3 {[%clk 0:00:11.5]} 82. Kb5 {[%clk 0:00:12.2]} 82... Bf2 {[%clk
0:00:11.6]} 83. Ka4 {[%clk 0:00:12.7]} 83... Be3 {[%clk 0:00:11.8]} 84. Be4
{[%clk 0:00:13.3]} 84... Bf2 {[%clk 0:00:11.9]} 85. b4 {[%clk 0:00:13.9]} 85...
cxb4 {[%clk 0:00:11.7]} 86. Bg6 {[%clk 0:00:14.4]} 86... Be3 {[%clk 0:00:11.7]}
87. Be4 {[%clk 0:00:15]} 87... Bf2 {[%clk 0:00:11.4]} 88. Bg6 {[%clk 0:00:15.6]}
88... Bd4 {[%clk 0:00:11.2]} 89. Bf7 {[%clk 0:00:13]} 89... Bc5 {[%clk
0:00:09.4]} 90. Bg6 {[%clk 0:00:12.8]} 90... Be3 {[%clk 0:00:09]} 91. Be4 {[%clk
0:00:12.9]} 91... Bf2 {[%clk 0:00:08.9]} 1/2-1/2

[Event "*** Titled Tuesday Blitz"]
[Site "Chess.com"]
[Date "2021.04.20"]
[Round "2"]
[White "731291"]
[Black "queen_iryna"]
[Result "1-0"]
[WhiteElo "2685"]
[BlackElo "2334"]
[TimeControl "180+1"]
[EndTime "10:19:58 PDT"]
[Termination "731291 won by resignation"]

1. e4 {[%clk 0:03:00.9]} 1... d6 {[%clk 0:03:00.9]} 2. Nc3 {[%clk 0:03:01.8]}
2... Nf6 {[%clk 0:02:57.9]} 3. Nf3 {[%clk 0:02:59.4]} 3... e5 {[%clk 0:02:56.6]}
4. d4 {[%clk 0:02:59.5]} 4... Nbd7 {[%clk 0:02:56.8]} 5. h3 {[%clk 0:02:58.8]}
5... Be7 {[%clk 0:02:56.8]} 6. Bc4 {[%clk 0:02:58.7]} 6... O-O {[%clk
0:02:56.9]} 7. O-O {[%clk 0:02:58.6]} 7... c6 {[%clk 0:02:57.5]} 8. a4 {[%clk
0:02:54.9]} 8... h6 {[%clk 0:02:57.5]} 9. Ba2 {[%clk 0:02:53.7]} 9... Re8 {[%clk
0:02:49.9]} 10. Qe2 {[%clk 0:02:31.9]} 10... Bf8 {[%clk 0:02:46]} 11. dxe5
{[%clk 0:02:27.4]} 11... Nxe5 {[%clk 0:02:43.2]} 12. Nxe5 {[%clk 0:02:26.9]}
12... dxe5 {[%clk 0:02:44.1]} 13. Be3 {[%clk 0:02:24.6]} 13... Be6 {[%clk
0:02:41.3]} 14. Bxe6 {[%clk 0:02:23.5]} 14... Rxe6 {[%clk 0:02:42.2]} 15. Rfd1
{[%clk 0:02:23.5]} 15... Qc7 {[%clk 0:02:38.6]} 16. Qc4 {[%clk 0:02:21.8]} 16...
Qe7 {[%clk 0:02:27.6]} 17. a5 {[%clk 0:02:18.1]} 17... Nh5 {[%clk 0:02:23.9]}
18. Ne2 {[%clk 0:02:09.6]} 18... Rg6 {[%clk 0:02:19.1]} 19. Rd3 {[%clk
0:02:07.2]} 19... Qh4 {[%clk 0:02:11.6]} 20. Kh2 {[%clk 0:02:07]} 20... Nf4
{[%clk 0:02:07.4]} 21. Bxf4 {[%clk 0:01:51.2]} 21... exf4 {[%clk 0:02:08.3]} 22.
Rf3 {[%clk 0:01:48.5]} 22... Qg5 {[%clk 0:02:03.2]} 23. Nxf4 {[%clk 0:01:46.5]}
23... Bd6 {[%clk 0:01:59.4]} 24. g3 {[%clk 0:01:43.9]} 24... Rf6 {[%clk
0:01:49.6]} 25. Rg1 {[%clk 0:01:34.6]} 25... Qxa5 {[%clk 0:01:36.5]} 26. Kg2
{[%clk 0:01:26.8]} 26... Re8 {[%clk 0:01:30.9]} 27. Nd3 {[%clk 0:01:23.6]} 27...
Rxf3 {[%clk 0:01:28.5]} 28. Kxf3 {[%clk 0:01:24.5]} 28... Qd8 {[%clk 0:01:18.6]}
29. Kg2 {[%clk 0:01:23.4]} 29... Qe7 {[%clk 0:01:16.1]} 30. Re1 {[%clk
0:01:23.7]} 30... Qe6 {[%clk 0:01:10.5]} 31. Qxe6 {[%clk 0:01:17.5]} 31... Rxe6
{[%clk 0:01:11.4]} 32. f4 {[%clk 0:01:17.6]} 32... Kf8 {[%clk 0:01:02.3]} 33.
Kf3 {[%clk 0:01:16.5]} 33... Re8 {[%clk 0:00:57.6]} 34. e5 {[%clk 0:01:11.9]}
34... Bb8 {[%clk 0:00:55]} 35. f5 {[%clk 0:01:11.8]} 35... b6 {[%clk 0:00:50.4]}
36. g4 {[%clk 0:01:01.4]} 36... a5 {[%clk 0:00:42.9]} 37. Re4 {[%clk 0:00:54.4]}
37... b5 {[%clk 0:00:40.1]} 38. b3 {[%clk 0:00:48.6]} 38... c5 {[%clk
0:00:25.3]} 39. Nxc5 {[%clk 0:00:47.2]} 39... Rc8 {[%clk 0:00:18.6]} 40. Nd7+
{[%clk 0:00:41.8]} 40... Ke7 {[%clk 0:00:18.9]} 41. Nxb8 {[%clk 0:00:23.8]}
41... Rxb8 {[%clk 0:00:19.8]} 42. Ke3 {[%clk 0:00:23.2]} 42... Ra8 {[%clk
0:00:19.4]} 43. Kd3 {[%clk 0:00:21]} 43... a4 {[%clk 0:00:19.5]} 44. Re1 {[%clk
0:00:12.6]} 44... a3 {[%clk 0:00:18.9]} 45. Kc3 {[%clk 0:00:12.3]} 45... Kd7
{[%clk 0:00:14.7]} 46. Kb4 {[%clk 0:00:11.3]} 46... Kc6 {[%clk 0:00:14.7]} 47.
Ra1 {[%clk 0:00:08]} 47... Re8 {[%clk 0:00:14.6]} 48. Rxa3 {[%clk 0:00:07.5]}
48... Rxe5 {[%clk 0:00:14.9]} 49. Ra6+ {[%clk 0:00:08.2]} 49... Kb7 {[%clk
0:00:14.9]} 50. Ra5 {[%clk 0:00:08.8]} 50... Re4+ {[%clk 0:00:14.2]} 51. Kc5
{[%clk 0:00:07.6]} 51... Re5+ {[%clk 0:00:14]} 52. Kb4 {[%clk 0:00:08.1]} 52...
Re4+ {[%clk 0:00:14.1]} 53. c4 {[%clk 0:00:07.5]} 53... bxc4 {[%clk 0:00:13]}
54. bxc4 {[%clk 0:00:08.4]} 54... Re3 {[%clk 0:00:12.6]} 55. Ra3 {[%clk
0:00:08.9]} 55... Re4 {[%clk 0:00:11.6]} 56. Rd3 {[%clk 0:00:09.3]} 56... Kc6
{[%clk 0:00:11]} 57. Ra3 {[%clk 0:00:10]} 57... Kb7 {[%clk 0:00:10.2]} 58. Rd3
{[%clk 0:00:09.5]} 58... Kc6 {[%clk 0:00:10.3]} 59. Rc3 {[%clk 0:00:08.5]} 59...
Re1 {[%clk 0:00:09.7]} 60. Ra3 {[%clk 0:00:08.2]} 60... Rb1+ {[%clk 0:00:09.5]}
61. Kc3 {[%clk 0:00:08.7]} 61... Kb6 {[%clk 0:00:09.1]} 62. Kd4 {[%clk
0:00:08.9]} 62... Rd1+ {[%clk 0:00:07.8]} 63. Rd3 {[%clk 0:00:09.2]} 63... Re1
{[%clk 0:00:06]} 64. Re3 {[%clk 0:00:09.1]} 64... Rd1+ {[%clk 0:00:05.5]} 65.
Ke4 {[%clk 0:00:09.3]} 65... Kc5 {[%clk 0:00:05.1]} 66. Rc3 {[%clk 0:00:08]}
66... Re1+ {[%clk 0:00:04.6]} 67. Kf4 {[%clk 0:00:08]} 67... Re7 {[%clk
0:00:04.6]} 68. h4 {[%clk 0:00:07.8]} 68... Kd4 {[%clk 0:00:04.8]} 69. Rc1
{[%clk 0:00:07.4]} 69... Re4+ {[%clk 0:00:04.5]} 70. Kf3 {[%clk 0:00:07.9]}
70... Re3+ {[%clk 0:00:04.7]} 71. Kf2 {[%clk 0:00:08.5]} 71... Re4 {[%clk
0:00:04.2]} 72. Kf3 {[%clk 0:00:06.9]} 72... Re3+ {[%clk 0:00:03.7]} 73. Kf2
{[%clk 0:00:07.5]} 73... Re4 {[%clk 0:00:04]} 74. c5 {[%clk 0:00:08.1]} 74...
Re7 {[%clk 0:00:03.6]} 75. c6 {[%clk 0:00:07.9]} 75... Rc7 {[%clk 0:00:04.2]}
76. Rd1+ {[%clk 0:00:06.7]} 76... Ke5 {[%clk 0:00:03.9]} 77. Rd7 {[%clk
0:00:07.3]} 77... Rxc6 {[%clk 0:00:02.5]} 78. Rxf7 {[%clk 0:00:07.7]} 78... g6
{[%clk 0:00:02.8]} 79. fxg6 {[%clk 0:00:06.2]} 79... Rxg6 {[%clk 0:00:03.7]} 80.
Rf5+ {[%clk 0:00:05.2]} 80... Ke4 {[%clk 0:00:03.5]} 81. Kg3 {[%clk 0:00:05.1]}
81... Ke3 {[%clk 0:00:03.4]} 82. Re5+ {[%clk 0:00:05.1]} 82... Kd4 {[%clk
0:00:03.4]} 83. Re8 {[%clk 0:00:06]} 83... Kd5 {[%clk 0:00:03.7]} 84. Kf4 {[%clk
0:00:05.5]} 84... Rg7 {[%clk 0:00:03.3]} 85. Kf5 {[%clk 0:00:05.1]} 85... Kd6
{[%clk 0:00:03.5]} 86. Re6+ {[%clk 0:00:04.7]} 86... Kd7 {[%clk 0:00:03.4]} 87.
Rxh6 {[%clk 0:00:05.6]} 87... Rf7+ {[%clk 0:00:02.9]} 88. Rf6 {[%clk 0:00:05.7]}
88... Rh7 {[%clk 0:00:01.9]} 89. h5 {[%clk 0:00:06]} 89... Ke7 {[%clk
0:00:02.3]} 90. Re6+ {[%clk 0:00:05.9]} 90... Kf7 {[%clk 0:00:02.2]} 91. Ra6
{[%clk 0:00:06.5]} 91... Kg8 {[%clk 0:00:02.1]} 92. Ra8+ {[%clk 0:00:06.7]}
92... Kg7 {[%clk 0:00:02.3]} 93. Ra7+ {[%clk 0:00:07.6]} 93... Kg8 {[%clk
0:00:02.6]} 94. Rxh7 {[%clk 0:00:08.1]} 94... Kxh7 {[%clk 0:00:03.5]} 95. g5
{[%clk 0:00:08.4]} 1-0

[Event "*** Titled Tuesday Blitz"]
[Site "Chess.com"]
[Date "2021.04.20"]
[Round "3"]
[White "FontVella8"]
[Black "vinniethepooh"]
[Result "0-1"]
[WhiteElo "2446"]
[BlackElo "2747"]
[TimeControl "180+1"]
[EndTime "10:21:52 PDT"]
[Termination "vinniethepooh won by resignation"]

1. d4 {[%clk 0:03:00.9]} 1... Nf6 {[%clk 0:03:00.2]} 2. c4 {[%clk 0:03:00.7]}
2... e6 {[%clk 0:03:00.7]} 3. Nf3 {[%clk 0:03:00.1]} 3... d5 {[%clk 0:03:01.2]}
4. Nc3 {[%clk 0:02:59.6]} 4... c6 {[%clk 0:03:01.7]} 5. cxd5 {[%clk 0:02:59.1]}
5... exd5 {[%clk 0:03:01.9]} 6. Qc2 {[%clk 0:02:59.6]} 6... g6 {[%clk
0:02:59.2]} 7. Bf4 {[%clk 0:02:56.9]} 7... Bf5 {[%clk 0:02:58.3]} 8. Qb3 {[%clk
0:02:55.6]} 8... Qb6 {[%clk 0:02:58.3]} 9. Qxb6 {[%clk 0:02:54.4]} 9... axb6
{[%clk 0:02:59.2]} 10. e3 {[%clk 0:02:54.9]} 10... Bb4 {[%clk 0:02:52.2]} 11.
Be5 {[%clk 0:02:53.2]} 11... Nbd7 {[%clk 0:02:49.8]} 12. Be2 {[%clk 0:02:44.1]}
12... Nxe5 {[%clk 0:02:47.8]} 13. Nxe5 {[%clk 0:02:44]} 13... Ne4 {[%clk
0:02:41.7]} 14. O-O {[%clk 0:02:43.5]} 14... Nxc3 {[%clk 0:02:32.5]} 15. bxc3
{[%clk 0:02:43.2]} 15... Bxc3 {[%clk 0:02:33.4]} 16. Rac1 {[%clk 0:02:42.3]}
16... Bb2 {[%clk 0:02:32.1]} 17. Rb1 {[%clk 0:02:41.5]} 17... Bxb1 {[%clk
0:02:31.1]} 18. Rxb1 {[%clk 0:02:40.2]} 0-1

[Event "*** Titled Tuesday Blitz"]
[Site "Chess.com"]
[Date "2021.04.20"]
[Round "3"]
[White "Agnes66678"]
[Black "TigrVShlyape"]
[Result "0-1"]
[WhiteElo "2452"]
[BlackElo "2813"]
[TimeControl "180+1"]
[EndTime "10:22:38 PDT"]
[Termination "TigrVShlyape won by resignation"]

1. d4 {[%clk 0:03:00.5]} 1... Nf6 {[%clk 0:02:59.2]} 2. c4 {[%clk 0:03:00.5]}
2... e6 {[%clk 0:02:58.4]} 3. g3 {[%clk 0:02:59.8]} 3... d5 {[%clk 0:02:48.9]}
4. Nf3 {[%clk 0:02:59]} 4... Bb4+ {[%clk 0:02:48.1]} 5. Bd2 {[%clk 0:02:58.5]}
5... Be7 {[%clk 0:02:47.4]} 6. Bg2 {[%clk 0:02:57.9]} 6... O-O {[%clk
0:02:46.1]} 7. O-O {[%clk 0:02:57.9]} 7... Nbd7 {[%clk 0:02:45.5]} 8. Qc2 {[%clk
0:02:58]} 8... c6 {[%clk 0:02:43.6]} 9. a3 {[%clk 0:02:58.1]} 9... a5 {[%clk
0:02:41.2]} 10. Rc1 {[%clk 0:02:56.6]} 10... Ne4 {[%clk 0:02:38.9]} 11. Bf4
{[%clk 0:02:44.5]} 11... g5 {[%clk 0:02:35]} 12. Be3 {[%clk 0:02:43.7]} 12... f5
{[%clk 0:02:34.7]} 13. Nc3 {[%clk 0:02:38.2]} 13... Nd6 {[%clk 0:02:28.3]} 14.
c5 {[%clk 0:02:30.1]} 14... Nc4 {[%clk 0:02:25.8]} 15. Bd2 {[%clk 0:02:19.4]}
15... g4 {[%clk 0:02:25.7]} 16. Ne1 {[%clk 0:02:16.1]} 16... Nxd2 {[%clk
0:02:24.6]} 17. Qxd2 {[%clk 0:02:15.7]} 17... Bg5 {[%clk 0:02:21.9]} 18. e3
{[%clk 0:02:15.4]} 18... e5 {[%clk 0:02:21.8]} 19. Nd3 {[%clk 0:02:11]} 19...
exd4 {[%clk 0:02:21.3]} 20. Nxd5 {[%clk 0:02:10.8]} 20... cxd5 {[%clk
0:02:18.6]} 0-1

[Event "*** Titled Tuesday Blitz"]
[Site "Chess.com"]
[Date "2021.04.20"]
[Round "3"]
[White "chesshermar"]
[Black "MFguimaraes"]
[Result "0-1"]
[WhiteElo "2194"]
[BlackElo "2407"]
[TimeControl "180+1"]
[EndTime "10:23:34 PDT"]
[Termination "MFguimaraes won by resignation"]

1. e4 {[%clk 0:03:00.9]} 1... e6 {[%clk 0:03:00.5]} 2. d4 {[%clk 0:03:00.7]}
2... d5 {[%clk 0:03:00.5]} 3. Nd2 {[%clk 0:03:01.1]} 3... c5 {[%clk 0:03:00.2]}
4. exd5 {[%clk 0:03:01.2]} 4... Qxd5 {[%clk 0:02:59]} 5. Ngf3 {[%clk 0:03:01.7]}
5... cxd4 {[%clk 0:02:58]} 6. Bc4 {[%clk 0:03:00.9]} 6... Qd6 {[%clk 0:02:57.3]}
7. Nb3 {[%clk 0:03:01]} 7... Nc6 {[%clk 0:02:57.2]} 8. O-O {[%clk 0:02:41.3]}
8... Nf6 {[%clk 0:02:53.7]} 9. Nbxd4 {[%clk 0:02:41.8]} 9... Nxd4 {[%clk
0:02:51.8]} 10. Nxd4 {[%clk 0:02:42.7]} 10... a6 {[%clk 0:02:52.4]} 11. Re1
{[%clk 0:02:41.7]} 11... Be7 {[%clk 0:02:52.1]} 12. c3 {[%clk 0:02:20.5]} 12...
O-O {[%clk 0:02:50.7]} 13. Qe2 {[%clk 0:02:18.8]} 13... Bd7 {[%clk 0:02:45.3]}
14. Bb3 {[%clk 0:02:14.1]} 14... Rad8 {[%clk 0:02:43.9]} 15. Bc2 {[%clk
0:02:13.2]} 15... Qb8 {[%clk 0:02:40.2]} 16. Bg5 {[%clk 0:02:10.2]} 16... h6
{[%clk 0:02:39.8]} 17. Bh4 {[%clk 0:02:05.4]} 17... Rfe8 {[%clk 0:02:33.3]} 18.
Bg3 {[%clk 0:02:04.2]} 18... Bd6 {[%clk 0:02:31.9]} 19. Bxd6 {[%clk 0:01:58.8]}
19... Qxd6 {[%clk 0:02:32.8]} 20. Rad1 {[%clk 0:01:59.4]} 20... Qc7 {[%clk
0:02:27.7]} 21. Nf3 {[%clk 0:01:53.5]} 21... Bc6 {[%clk 0:02:25.9]} 22. Ne5
{[%clk 0:01:54]} 22... Rxd1 {[%clk 0:02:21.9]} 23. Rxd1 {[%clk 0:01:54.9]} 23...
Bd5 {[%clk 0:02:16]} 24. Qd3 {[%clk 0:01:44.3]} 24... Qxe5 {[%clk 0:02:04.7]}
0-1

[Event "*** Titled Tuesday Blitz"]
[Site "Chess.com"]
[Date "2021.04.20"]
[Round "3"]
[White "Grandmaster2B"]
[Black "FredyMatsuura"]
[Result "1-0"]
[WhiteElo "2555"]
[BlackElo "2329"]
[TimeControl "180+1"]
[EndTime "10:23:57 PDT"]
[Termination "Grandmaster2B won by resignation"]

1. e4 {[%clk 0:03:00.9]} 1... c5 {[%clk 0:02:59.7]} 2. Nf3 {[%clk 0:03:00.7]}
2... e6 {[%clk 0:03:00.1]} 3. d4 {[%clk 0:03:00.9]} 3... cxd4 {[%clk 0:03:00.6]}
4. Nxd4 {[%clk 0:03:01.8]} 4... Nf6 {[%clk 0:03:01.1]} 5. Nc3 {[%clk 0:03:01]}
5... d6 {[%clk 0:03:01.6]} 6. Be3 {[%clk 0:03:00.2]} 6... Nc6 {[%clk 0:03:00.9]}
7. f3 {[%clk 0:03:00.3]} 7... a6 {[%clk 0:02:58.5]} 8. Qd2 {[%clk 0:03:00.8]}
8... Qc7 {[%clk 0:02:56.4]} 9. O-O-O {[%clk 0:03:00.6]} 9... b5 {[%clk
0:02:54.5]} 10. g4 {[%clk 0:03:01.1]} 10... Nd7 {[%clk 0:02:50.7]} 11. h4 {[%clk
0:02:58.8]} 11... Nce5 {[%clk 0:02:47.3]} 12. g5 {[%clk 0:02:49.8]} 12... Nb6
{[%clk 0:02:46.5]} 13. b3 {[%clk 0:02:30.3]} 13... b4 {[%clk 0:02:41.7]} 14.
Nce2 {[%clk 0:02:30.1]} 14... Bd7 {[%clk 0:02:24.9]} 15. Bh3 {[%clk 0:02:27]}
15... a5 {[%clk 0:02:06.7]} 16. f4 {[%clk 0:02:25.2]} 16... Nc6 {[%clk
0:01:58.1]} 17. Nb5 {[%clk 0:02:23.6]} 17... Qb8 {[%clk 0:01:57.4]} 18. Nxd6+
{[%clk 0:02:21.8]} 18... Bxd6 {[%clk 0:01:56.1]} 19. Qxd6 {[%clk 0:02:22.7]}
19... Qxd6 {[%clk 0:01:55.9]} 20. Rxd6 {[%clk 0:02:23.6]} 20... Nc8 {[%clk
0:01:48.9]} 21. Rd2 {[%clk 0:02:22.4]} 21... Rb8 {[%clk 0:01:31.2]} 22. Rhd1
{[%clk 0:02:21.9]} 22... Rb7 {[%clk 0:01:31.4]} 23. e5 {[%clk 0:02:18.1]} 23...
N8e7 {[%clk 0:01:27.8]} 24. Bg2 {[%clk 0:02:18.1]} 24... Rc7 {[%clk 0:01:23.9]}
25. Ng3 {[%clk 0:02:14.3]} 25... Bc8 {[%clk 0:01:17.9]} 26. Bc5 {[%clk
0:02:10.9]} 26... O-O {[%clk 0:01:15.5]} 27. Bxc6 {[%clk 0:02:11.2]} 1-0

[Event "*** Titled Tuesday Blitz"]
[Site "Chess.com"]
[Date "2021.04.20"]
[Round "3"]
[White "picturesquecheck"]
[Black "deribas12345"]
[Result "0-1"]
[WhiteElo "2303"]
[BlackElo "2532"]
[TimeControl "180+1"]
[EndTime "10:24:05 PDT"]
[Termination "deribas12345 won by resignation"]

1. e4 {[%clk 0:03:00.9]} 1... c5 {[%clk 0:02:59.6]} 2. Nf3 {[%clk 0:03:00.2]}
2... d6 {[%clk 0:02:58.5]} 3. Bb5+ {[%clk 0:02:56]} 3... Nc6 {[%clk 0:02:56.3]}
4. O-O {[%clk 0:02:53.3]} 4... a6 {[%clk 0:02:56.5]} 5. Bxc6+ {[%clk 0:02:53.3]}
5... bxc6 {[%clk 0:02:57.4]} 6. d3 {[%clk 0:02:51.7]} 6... g6 {[%clk 0:02:57]}
7. Nc3 {[%clk 0:02:52.2]} 7... Bg7 {[%clk 0:02:57.3]} 8. Re1 {[%clk 0:02:52.8]}
8... e5 {[%clk 0:02:57.1]} 9. Bg5 {[%clk 0:02:51.3]} 9... f6 {[%clk 0:02:56.1]}
10. Be3 {[%clk 0:02:50.6]} 10... Ne7 {[%clk 0:02:56.1]} 11. h3 {[%clk
0:02:47.4]} 11... O-O {[%clk 0:02:55.1]} 12. Nd2 {[%clk 0:02:45.5]} 12... Be6
{[%clk 0:02:43.7]} 13. a4 {[%clk 0:02:44.8]} 13... f5 {[%clk 0:02:34.6]} 14. Bg5
{[%clk 0:02:40]} 14... h6 {[%clk 0:02:31]} 15. Bxe7 {[%clk 0:02:39.7]} 15...
Qxe7 {[%clk 0:02:31.9]} 16. exf5 {[%clk 0:02:40.1]} 16... gxf5 {[%clk 0:02:31]}
17. Nf3 {[%clk 0:02:38.1]} 17... Rae8 {[%clk 0:02:28.1]} 18. Qd2 {[%clk
0:02:26.9]} 18... Kh7 {[%clk 0:02:23.1]} 19. Re2 {[%clk 0:02:21.8]} 19... Rg8
{[%clk 0:02:22.3]} 20. Rae1 {[%clk 0:02:17.1]} 20... Bf6 {[%clk 0:02:20.9]} 21.
Kh1 {[%clk 0:02:14.8]} 21... Qg7 {[%clk 0:02:19]} 22. g3 {[%clk 0:02:06.3]}
22... Qg6 {[%clk 0:02:13.4]} 23. Nd1 {[%clk 0:01:37.8]} 23... f4 {[%clk
0:02:06.3]} 24. Rg1 {[%clk 0:01:28.8]} 24... Bxh3 {[%clk 0:02:04]} 25. gxf4
{[%clk 0:01:24.8]} 25... Bg2+ {[%clk 0:02:03.7]} 26. Kh2 {[%clk 0:01:22]} 26...
Qh5+ {[%clk 0:02:03.4]} 0-1